bitfinex-derivatives/quotes_ETHF0:USTF0_20250504
["timestamp","ask_amount","ask_price","bid_price","bid_amount"]
[1746324296750,3.688,1843.7,1843.5,4.88369]
[1746324297051,2.3929,1843.6,1843.5,3.799]
[1746324297547,3.47757,1843.6,1843.5,3.799]
[1746324298246,10.37337,1843.6,1843.5,3.799]
[1746324298545,6.0809,1843.6,1843.5,1.08473]
[1746324299453,14.2887,1843.6,1843.3,7.2583444]
[1746324299645,2.481,1843.5,1843.4,1.08478]
[1746324300151,6.169,1843.5,1843.4,1.08478]
[1746324300551,3.688,1843.5,1843.4,1.08478]
[1746324300752,3.688,1843.5,1843.4,2.75478]
[1746324301653,2.55741,1843.5,1843.4,7.75478]
[1746324301851,0.0076674,1843.9,1843.8,1.08455]
[1746324302154,3.6956674,1843.9,1843.8,5.02955]
[1746324302552,3.6956674,1843.9,1843.8,6.69955]
[1746324303154,7.12190009,1844.3,1844.2,1.08431]
[1746324303352,7.12190009,1844.3,1844.2,8.23711]
[1746324303850,7.12190009,1844.3,1844.2,5.02931]
[1746324304356,10.80990009,1844.3,1844.2,5.02931]
[1746324305453,3.688,1844.3,1844.2,3.945]
[1746324305649,6.2237,1844.3,1844.2,5.02931]
[1746324307356,4.5,1844.3,1844.2,3.945]
[1746324307550,6.2305,1844.3,1844.2,5.02931]
[1746324307751,6.2305,1844.3,1844.2,3.945]
[1746324308250,6.2305,1844.3,1844.2,5.02931]
[1746324310450,3.688,1844.3,1844.2,5.02931]
[1746324310756,1e-05,1844.3,1844.2,16.11318]
[1746324310955,1e-05,1844.3,1844.2,25.46433214]
[1746324312459,7.12190009,1845.2,1845.1,1.08378]
[1746324312659,7.12190009,1845.2,1845.1,5.02778]
[1746324313161,10.80990009,1845.2,1845.1,6.73938]
[1746324313362,3.688,1845.2,1845.1,6.73938]
[1746324314355,1.48466,1845.2,1845.1,6.73938]
[1746324314656,7.12190009,1845.7,1845.1,5.6556]
[1746324314856,1.6862,1845.6,1845.3,1.08362]
[1746324315052,3.9917,1845.5,1845.2,1.7116]
[1746324315254,0.7839,1845.5,1845.4,1.08361]
[1746324315961,1.6862,1845.6,1845.5,1.08355]
[1746324316252,5.3742,1845.6,1845.5,3.943]
[1746324316464,5.3742,1845.6,1845.5,5.02655]
[1746324317452,10.3742,1845.6,1845.5,3.943]
[1746324317653,3.688,1845.6,1845.5,5.02655]
[1746324317855,3.688,1845.6,1845.5,6.62375]
[1746324320262,1.10336,1845.6,1845.5,11.62375]
[1746324320762,1.10336,1845.6,1845.5,6.62375]
[1746324320963,4.8793,1846.1,1846.0,1.08326]
[1746324321160,1.6735,1846.4,1846.3,1.08308]
[1746324321465,3.2078,1846.6,1846.5,1.08296]
[1746324321661,3.2078,1846.6,1846.3,3.942]
[1746324322062,3.2078,1846.6,1846.5,1.08296]
[1746324322263,6.8958,1846.6,1846.5,1.08296]
[1746324322461,2.09605,1846.6,1846.5,6.08296]
[1746324322656,0.92036,1846.6,1846.5,6.08296]
[1746324322857,0.92036,1846.6,1846.5,1.6898]
[1746324323261,7.52256,1846.6,1846.5,3.984]
[1746324323466,10.73036,1846.6,1846.5,3.984]
[1746324323659,1.08311,1846.3,1846.1,3.984]
[1746324323860,0.8613,1846.5,1846.4,1.08302]
[1746324324160,3.688,1846.5,1846.4,1.08302]
[1746324324359,3.688,1846.5,1846.4,6.08302]
[1746324324565,7.12190009,1846.7,1846.6,1.0829]
[1746324324868,7.12190009,1846.7,1846.6,8.2747]
[1746324325164,10.80990009,1846.7,1846.6,8.2747]
[1746324326371,7.84724009,1846.7,1846.6,20.29036881]
[1746324326567,3.688,1846.7,1846.6,21.02296881]
[1746324326762,3.2078,1847.6,1846.6,19.94006881]
[1746324327071,6.8958,1847.6,1847.1,3.2078]
[1746324327263,3.688,1847.6,1847.5,1.08238]
[1746324327460,2.5636,1847.6,1847.5,5.06538]
[1746324327659,0.05634,1847.6,1847.5,17.12742099]
[1746324327863,0.05634,1847.6,1847.5,12.12742099]
[1746324328071,0.05634,1847.6,1847.5,3.983]
[1746324328372,0.05634,1847.6,1847.5,5.06538]
[1746324328664,3.2078,1848.1,1847.5,3.983]
[1746324328866,3.2078,1847.7,1846.9,55.253]
[1746324329073,3.2078,1847.8,1847.1,3.982]
[1746324329264,1.08248,1847.4,1847.1,3.982]
[1746324329572,1.08235,1847.6,1847.1,5.0646]
[1746324329774,1.08229,1847.7,1847.1,5.0646]
[1746324329964,3.2078,1847.8,1847.2,3.2078]
[1746324330160,3.2078,1847.6,1847.1,3.982]
[1746324330370,1.0824,1847.5,1847.1,3.982]
[1746324330570,3.2078,1847.6,1847.1,3.982]
[1746324330767,1.08241,1847.5,1847.1,3.982]
[1746324330965,3.2078,1847.6,1847.4,1.08239]
[1746324331263,3.688,1847.6,1847.5,1.08238]
[1746324331474,3.688,1847.6,1847.5,5.06438]
[1746324332166,3.688,1847.6,1847.5,3.982]
[1746324332167,9.77032,1847.6,1847.5,3.982]
[1746324332369,11.8958,1847.6,1847.0,3.2078]
[1746324332566,1.08246,1847.4,1847.1,5.06461]
[1746324332874,1.6173,1847.3,1847.1,5.06461]
[1746324333064,1.6173,1847.3,1847.1,3.982]
[1746324333261,5.3053,1847.3,1847.1,5.06459]
[1746324333868,14.59562,1847.3,1847.1,3.982]
[1746324334062,5.3053,1847.3,1847.1,3.982]
[1746324334271,8.5131,1847.3,1847.1,5.06458]
[1746324334573,8.5131,1847.3,1847.1,3.982]
[1746324334769,13.5131,1847.3,1846.9,55.253]
[1746324335074,1.08271,1847.0,1846.7,3.2078]
[1746324335270,2.441,1846.9,1846.8,1.08278]
[1746324335873,10.6488,1846.9,1846.5,3.982]
[1746324336069,1.08315,1846.2,1846.0,58.4338]
[1746324336271,1.0831,1846.3,1846.1,3.982]
[1746324336475,0.8639,1846.2,1846.1,5.0652]
[1746324336669,0.8639,1846.2,1846.1,7.1898]
[1746324336871,0.8639,1846.2,1846.1,8.273]
[1746324337068,4.5519,1846.2,1846.1,8.273]
[1746324337262,3.688,1846.2,1846.1,8.273]
[1746324338174,2.24862591,1846.2,1846.1,13.273]
[1746324338375,2.24862591,1846.2,1846.1,14.0978]
[1746324340772,2.24862591,1846.2,1846.1,9.0978]
[1746324342677,2.24862591,1846.2,1846.1,14.0978]
[1746324342867,0.86638591,1846.2,1846.1,14.0978]
[1746324343071,0.8578,1846.9,1846.8,1.08279]
[1746324343275,0.8578,1846.9,1846.8,8.27259]
[1746324344276,3.688,1846.9,1846.8,8.27259]
[1746324347483,0.8551,1847.8,1847.2,1.08255]
[1746324347677,0.7985,1847.7,1847.6,1.08229]
[1746324348175,4.4865,1847.7,1847.6,1.08229]
[1746324351177,2.9648,1847.7,1847.6,1.08229]
[1746324351483,0.8378,1848.1,1848.0,1.08208]
[1746324352083,3.2078,1848.5,1848.4,1.08185]
[1746324352673,3.2078,1848.9,1848.6,1.08173]
[1746324352880,3.2078,1849.3,1848.9,2.7039]
[1746324353077,3.2078,1849.3,1848.7,6.68509]
[1746324353276,1.08163,1848.8,1848.1,3.2078]
[1746324353478,3.2078,1849.2,1848.3,3.2078]
[1746324353787,3.2078,1849.2,1848.6,2.70434]
[1746324353992,4.28918,1849.2,1848.9,1.08153]
[1746324354180,6.8958,1849.2,1848.9,1.08153]
[1746324354479,3.688,1849.2,1849.1,1.08144]
[1746324355684,1.08145,1849.1,1848.7,7.2928]
[1746324355984,1.7138,1849.0,1848.9,1.08156]
[1746324356184,5.4018,1849.0,1848.9,1.08156]
[1746324356384,10.4018,1849.0,1848.7,7.2928]
[1746324356577,5.4018,1849.0,1848.9,1.08156]
[1746324356783,5.4018,1849.0,1848.9,4.28936]
[1746324357183,3.688,1849.0,1848.9,4.28936]
[1746324357584,3.688,1849.0,1848.9,8.37336]
[1746324358189,3.2078,1849.8,1848.9,12.2918]
[1746324358383,3.2078,1850.0,1849.4,3.2078]
[1746324358687,1.7331,1850.2,1849.5,5.7809]
[1746324358688,4.28884,1849.8,1849.5,5.7809]
[1746324358890,1.7331,1849.7,1849.4,5.16424]
[1746324359085,1.7331,1849.7,1849.4,4.083]
[1746324359291,3.688,1849.7,1849.5,4.9047]
[1746324359491,1.7331,1849.6,1849.5,1.69042]
[1746324359689,1.7331,1849.6,1849.5,2.77163]
[1746324359883,2.81425,1849.6,1849.4,4.083]
[1746324360079,5.4211,1849.6,1849.4,4.083]
[1746324360383,1.08127,1849.4,1849.1,1.08142]
[1746324360589,6.5871,1849.3,1849.0,4.083]
[1746324360892,3.2078,1849.1,1848.9,1.08152]
[1746324361086,1.7331,1849.0,1848.8,1.08159]
[1746324361286,3.2078,1848.9,1848.3,4.083]
[1746324361485,2.5356,1848.8,1848.3,4.083]
[1746324361695,2.5356,1848.8,1848.7,1.08167]
[1746324361913,6.8958,1849.1,1849.0,1.0815]
[1746324362386,6.8958,1849.1,1848.6,1.08173]
[1746324362387,11.8958,1849.1,1848.6,1.08173]
[1746324362584,11.8958,1849.1,1848.4,11.3403444]
[1746324362585,6.8958,1849.1,1848.4,11.3403444]
[1746324362787,6.8958,1849.1,1849.0,1.0815]
[1746324362989,3.688,1849.1,1849.0,1.0815]
[1746324363189,5.4197,1849.1,1849.0,1.0815]
[1746324364594,5.4197,1849.1,1849.0,5.1635]
[1746324365187,5.4197,1849.1,1848.8,1.08162]
[1746324365188,13.6275,1849.1,1848.8,1.08162]
[1746324365488,8.6275,1849.1,1848.7,7.2898]
[1746324365694,9.70896,1849.1,1848.7,8.37146]
[1746324366290,4.28938,1848.9,1848.5,1.08177]
[1746324366492,3.2078,1848.7,1848.5,1.08177]
[1746324366685,2.5096,1848.6,1848.5,1.08179]
[1746324367091,6.1976,1848.6,1848.5,1.08179]
[1746324367394,6.1976,1848.6,1848.2,3.2078]
[1746324367395,14.4054,1848.6,1848.2,3.2078]
[1746324367594,9.4054,1848.6,1848.2,3.2078]
[1746324367793,10.48714,1848.6,1848.3,1.08189]
[1746324367989,9.4054,1848.6,1848.4,1.08182]
[1746324368292,6.1976,1848.6,1848.5,1.08179]
[1746324368594,3.688,1848.6,1848.5,5.16379]
[1746324368793,3.688,1848.6,1848.5,10.16379]
[1746324368997,3.688,1848.6,1848.5,11.83329]
[1746324369392,3.688,1848.6,1848.5,6.83329]
[1746324369894,4.76973,1848.6,1848.5,4.082]
[1746324370097,3.688,1848.6,1848.2,4.082]
[1746324370299,3.3222,1848.5,1848.3,1.08187]
[1746324370491,3.2296415,1848.6,1848.3,1.08187]
[1746324370693,3.2296415,1848.6,1848.3,2.76667]
[1746324370993,2.1478715,1848.6,1848.2,4.082]
[1746324371193,1.08179,1848.5,1848.2,4.082]
[1746324371396,1.0818,1848.5,1848.3,1.0819]
[1746324371799,3.2296515,1848.6,1848.3,1.08191]
[1746324372098,1.08191,1848.3,1848.2,4.082]
[1746324372300,5.91243,1848.4,1847.9,5.7668]
[1746324372601,1.08203,1848.1,1847.9,5.16411]
[1746324372897,1.08214,1847.9,1847.8,3.2078]
[1746324373098,1.08229,1847.7,1847.5,1.08235]
[1746324373296,1.08238,1847.5,1847.3,1.08247]
[1746324373490,1.08246,1847.4,1847.2,1.6848]
[1746324373795,3.58546,1847.4,1847.1,1.08257]
[1746324374006,2.503,1847.4,1847.3,1.08249]
[1746324374191,6.191,1847.4,1847.2,1.08251]
[1746324374495,1.08257,1847.2,1847.0,11.3403444]
[1746324374797,1.6504,1847.1,1847.0,7.2583444]
[1746324374994,2.73301,1847.1,1847.0,7.2583444]
[1746324375199,11.42101,1847.1,1847.0,7.2583444]
[1746324375393,12.23541,1847.1,1847.0,7.2583444]
[1746324375594,12.23541,1847.1,1847.0,5.9561444]
[1746324376800,11.1528,1847.1,1846.6,1.08287]
[1746324377007,4.29053,1846.9,1846.6,1.08287]
[1746324377305,1.7111,1846.8,1846.6,1.08287]
[1746324377508,1.7111,1846.8,1846.6,1.08289]
[1746324377703,1.7111,1846.8,1846.7,1.08285]
[1746324378197,3.688,1846.8,1846.7,6.08285]
[1746324378401,3.688,1846.8,1846.7,1.08285]
[1746324378699,3.688,1846.8,1846.6,1.5976]
[1746324378905,1.0829,1846.6,1846.5,3.2078]
[1746324379098,3.688,1846.6,1846.3,3.2078]
[1746324379404,3.688,1846.6,1845.8,10.90381871]
[1746324379405,1.08361,1845.4,1845.3,18.2300257]
[1746324379701,1.08367,1845.3,1845.2,25.47662332]
[1746324379898,6.08367,1845.3,1845.2,14.15836935]
[1746324380097,4.77167,1845.3,1845.2,14.15836935]
[1746324380304,4.77167,1845.3,1845.2,12.57727935]
[1746324380305,9.77167,1845.3,1845.2,12.57727935]
[1746324380901,1.08373,1845.2,1845.1,16.83064738]
[1746324381097,4.29153,1845.2,1845.1,13.59658738]
[1746324381300,9.29153,1845.2,1845.1,12.08672738]
[1746324382200,12.38253,1845.2,1845.1,10.93361738]
[1746324382405,12.38253,1845.2,1845.1,8.39982738]
[1746324382607,12.38453,1845.2,1845.1,8.39982738]
[1746324383206,12.38453,1845.2,1845.1,6.88556738]
[1746324383701,7.97953,1845.2,1845.1,6.88556738]
[1746324383896,12.38453,1845.2,1845.1,6.88556738]
[1746324384100,7.97953,1845.2,1845.1,6.88556738]
[1746324384602,12.38453,1845.2,1845.1,6.88556738]
[1746324385002,13.00283,1845.2,1845.1,6.88556738]
[1746324385309,1.08385,1845.0,1844.8,1.6822]
[1746324385603,1.08385,1845.0,1844.9,1.6822]
[1746324385908,3.688,1845.2,1844.9,2.76607]
[1746324386101,3.688,1845.2,1845.0,1.08383]
[1746324386304,3.688,1845.2,1844.9,6.6822]
[1746324386305,3.688,1845.2,1845.1,2.80738]
[1746324386507,3.688,1845.2,1845.1,6.01518]
[1746324386809,3.688,1845.2,1845.1,7.80738]
[1746324387106,3.688,1845.2,1845.1,11.01518]
[1746324387307,2.3842,1845.2,1845.1,11.01518]
[1746324387504,3.2078,1845.6,1845.4,1.0836]
[1746324387910,4.2913,1845.6,1845.3,1.08363]
[1746324388105,1.08358,1845.5,1845.2,1.08371]
[1746324388412,7.97933,1845.6,1845.3,1.08365]
[1746324389505,3.688,1845.6,1845.1,3.2078]
[1746324389812,3.688,1845.6,1845.4,1.08356]
[1746324390108,3.688,1845.6,1845.5,1.08355]
[1746324390505,3.688,1845.6,1845.5,6.08355]
[1746324391008,3.688,1845.6,1845.5,1.08355]
[1746324392609,3.688,1845.6,1845.5,6.08355]
[1746324393009,3.688,1845.6,1845.5,9.29135]
[1746324393209,7.06919,1846.2,1845.9,1.08331]
[1746324393409,3.2078,1846.1,1845.6,1.5977]
[1746324393706,1.08332,1845.9,1845.6,7.08815]
[1746324393907,1.08332,1845.9,1845.7,1.5977]
[1746324394215,4.77134,1845.9,1845.7,2.6811]
[1746324394414,4.77134,1845.9,1845.7,2.68111]
[1746324394716,3.688,1845.9,1845.7,2.68111]
[1746324394913,3.688,1845.9,1845.8,1.08337]
[1746324395911,3.688,1845.9,1845.7,1.5977]
[1746324396115,4.77133,1845.9,1845.7,2.6811]
[1746324396311,3.2078,1845.8,1845.3,11.35117]
[1746324396521,3.2078,1845.8,1845.5,1.5863]
[1746324396709,1.08345,1845.7,1845.5,2.66981]
[1746324396909,1.5701,1845.7,1845.6,1.08349]
[1746324397112,3.688,1845.7,1845.6,1.08349]
[1746324398314,1.08349,1845.6,1845.5,1.5863]
[1746324398617,4.77146,1845.7,1845.5,2.66982]
[1746324398817,1.08349,1845.6,1845.5,1.5863]
[1746324399119,1.08358,1845.5,1845.3,1.08363]
[1746324399418,1.08358,1845.5,1845.4,1.577]
[1746324399820,6.7138,1845.5,1845.1,3.2078]
[1746324400021,1.08373,1845.2,1845.0,2.66081]
[1746324400820,2.79751,1845.3,1845.1,1.08378]
[1746324401022,2.79751,1845.3,1845.2,1.6744]
[1746324401215,6.48551,1845.3,1845.2,2.75813]
[1746324401410,6.48551,1845.3,1845.2,1.6744]
[1746324402910,1.08375,1845.2,1845.0,1.0838]
[1746324403114,3.688,1845.2,1845.1,1.08378]
[1746324403924,3.688,1845.2,1845.1,6.08378]
[1746324404624,3.688,1845.2,1845.1,1.08378]
[1746324407120,4.77173,1845.2,1845.0,2.7582]
[1746324407326,4.77173,1845.2,1845.0,2.75822]
[1746324407327,4.77177,1845.2,1845.0,2.75822]
[1746324407618,6.8958,1845.2,1845.0,1.6744]
[1746324407820,3.688,1845.2,1845.1,1.08378]
[1746324409419,1.08346,1845.7,1845.5,1.08353]
[1746324409922,1.08346,1845.7,1845.6,1.7215]
[1746324410126,4.77146,1845.7,1845.6,1.7215]
[1746324411128,6.41376,1845.7,1845.6,1.7215]
[1746324412125,5.3303,1845.7,1845.1,4.342]
[1746324412326,1.08356,1845.5,1845.4,1.08359]
[1746324412529,4.29134,1845.6,1845.4,1.08359]
[1746324412728,1.6423,1845.5,1845.4,1.08359]
[1746324412928,3.2078,1845.6,1845.5,1.08355]
[1746324413127,4.77147,1845.7,1845.6,1.08349]
[1746324413322,1.08347,1845.7,1845.6,1.08349]
[1746324413519,1.08347,1845.7,1845.5,1.08351]
[1746324413731,1.08347,1845.7,1845.6,1.7314]
[1746324413919,2.75707,1845.7,1845.6,1.7314]
[1746324414119,6.44507,1845.7,1845.6,1.7314]
[1746324414631,1.08358,1845.5,1845.1,4.342]
[1746324414930,1.08367,1845.3,1845.2,1.7314]
[1746324415230,3.688,1845.3,1845.2,2.81509]
[1746324415632,6.44527,1845.3,1845.2,2.81509]
[1746324415834,1.08378,1845.2,1845.0,1.08381]
[1746324416133,6.35548,1845.2,1845.0,1.6895]
[1746324416331,6.35548,1845.2,1845.1,1.08378]
[1746324416623,5.2717,1845.2,1845.1,1.08378]
[1746324416833,6.35543,1845.2,1845.1,1.08378]
[1746324417233,5.2717,1845.2,1845.1,1.08378]
[1746324417829,6.35543,1845.2,1845.1,1.08378]
[1746324418627,5.2717,1845.2,1845.1,1.08378]
[1746324420633,3.688,1845.2,1845.1,1.08378]
[1746324421034,1.08378,1845.1,1845.0,1.6895]
[1746324421235,2.81898,1845.1,1845.0,1.6895]
[1746324421632,1.7352,1845.1,1844.9,1.08386]
[1746324421835,1.08384,1845.0,1844.9,1.08386]
[1746324422136,4.77184,1845.0,1844.9,2.81666]
[1746324422336,6.46704,1845.0,1844.9,1.7328]
[1746324422541,1.0839,1844.9,1844.8,1.08393]
[1746324422729,2.7791,1844.9,1844.8,1.08393]
[1746324423037,1.6952,1844.9,1844.8,1.08393]
[1746324423237,5.3832,1844.9,1844.8,1.08393]
[1746324423639,3.688,1844.9,1844.8,1.08393]
[1746324423833,3.688,1844.9,1844.8,6.08393]
[1746324424035,3.688,1844.9,1844.8,8.72453]
[1746324425741,3.688,1844.9,1844.8,3.72453]
[1746324426940,3.55944592,1845.3,1845.2,1.08373]
[1746324427141,7.24744592,1845.3,1845.2,1.08373]
[1746324428335,7.24744592,1845.3,1845.2,4.29153]
[1746324429241,7.24744592,1845.3,1845.2,8.63353]
[1746324431736,7.24744592,1845.3,1845.2,5.42573]
[1746324432137,8.33111592,1845.3,1845.2,4.342]
[1746324432338,9.93082592,1845.3,1845.1,1.08378]
[1746324432745,8.84714592,1845.3,1845.1,1.08378]
[1746324433244,8.84714592,1845.3,1845.2,1.6905]
[1746324434248,9.93081592,1845.3,1845.2,1.6905]
[1746324434549,6.37137,1845.3,1845.2,1.6905]
[1746324435047,6.37137,1845.3,1845.1,1.08377]
[1746324435048,10.2877,1845.3,1844.8,5.2498]
[1746324435346,1.08376,1845.2,1845.0,1.08383]
[1746324435543,1.08378,1845.1,1844.9,2.79107]
[1746324435748,3.2078,1845.0,1844.4,14.13354996]
[1746324436045,4.29194,1844.5,1844.4,12.87510996]
[1746324436248,3.2078,1844.5,1844.4,12.87510996]
[1746324436651,10.4293,1845.0,1844.4,17.87510996]
[1746324436842,9.4668,1845.0,1844.7,1.084]
[1746324437147,6.8958,1845.0,1844.8,2.79115]
[1746324437352,6.8958,1845.0,1844.9,1.6862]
[1746324438453,7.97964,1845.0,1844.9,1.6862]
[1746324438752,7.97964,1845.0,1844.8,143.23]
[1746324439055,2.7517,1844.9,1844.8,143.23]
[1746324439452,1.6678,1844.9,1844.8,143.23]
[1746324440254,5.3558,1844.9,1844.8,143.23]
[1746324441254,6.4397,1844.9,1844.8,143.23]
[1746324441849,4.7719,1844.9,1844.8,143.23]
[1746324442046,3.688,1844.9,1844.8,144.31396]
[1746324442251,3.688,1844.9,1844.8,143.23]
[1746324442549,4.7719,1844.9,1844.8,143.23]
[1746324442747,3.688,1844.9,1844.8,143.23]
[1746324443047,3.688,1844.9,1844.8,144.31396]
[1746324443445,3.688,1844.9,1844.8,150.29356]
[1746324444358,3.688,1844.9,1844.8,145.29356]
[1746324446761,3.688,1844.9,1844.8,153.50136]
[1746324447157,3.61200195,1845.3,1845.2,1.08373]
[1746324447561,6.81980195,1845.3,1845.2,1.08373]
[1746324448160,10.50780195,1845.3,1845.2,1.08373]
[1746324450466,11.59147195,1845.3,1845.1,1.08374]
[1746324450669,3.688,1845.3,1845.2,2.77223]
[1746324451868,4.77167,1845.3,1845.2,1.6885]
[1746324452070,6.8958,1845.3,1845.2,2.77223]
[1746324452269,9.63047,1845.3,1845.2,1.6885]
[1746324452462,9.6305,1845.3,1845.1,1.08377]
[1746324453563,8.5468,1845.3,1845.0,1.5696]
[1746324453868,9.6305,1845.3,1845.1,1.08378]
[1746324454669,1.08373,1845.2,1845.1,1.08378]
[1746324454872,2.74903,1845.2,1845.1,1.08378]
[1746324455065,5.3533,1845.2,1845.1,1.08378]
[1746324457269,6.43703,1845.2,1845.0,1.5696]
[1746324457471,5.3533,1845.2,1845.0,2.65341]
[1746324457771,6.43706,1845.2,1845.0,2.65341]
[1746324458071,1.0839,1845.0,1844.8,144.31394]
[1746324458370,1.6958,1844.9,1844.8,144.31394]
[1746324458872,2.7797,1844.9,1844.8,144.31394]
[1746324459169,5.3838,1844.9,1844.8,144.31394]
[1746324460572,3.688,1844.9,1844.8,144.31394]
[1746324462869,7.9797,1844.9,1844.8,143.23]
[1746324463062,9.6493,1844.9,1844.8,143.23]
[1746324463370,9.6493,1844.9,1844.8,144.31396]
[1746324463569,8.5654,1844.9,1844.8,144.31396]
[1746324463973,5.3576,1844.9,1844.8,144.31396]
[1746324464176,3.688,1844.9,1844.8,144.31396]
[1746324465063,6.8958,1844.9,1844.8,144.31396]
[1746324465373,7.9797,1844.9,1844.8,145.97106]
[1746324465876,6.8958,1844.9,1844.8,145.97106]
[1746324466174,7.9797,1844.9,1844.8,145.97106]
[1746324466371,9.6563,1844.9,1844.8,145.97106]
[1746324467377,8.5724,1844.9,1844.8,145.97106]
[1746324467877,9.6563,1844.9,1844.8,145.97106]
[1746324468379,9.6563,1844.9,1844.8,2.74106]
[1746324469080,8.5724,1844.9,1844.8,2.74106]
[1746324470079,9.6563,1844.9,1844.8,2.74106]
[1746324470281,5.3646,1844.9,1844.8,2.74106]
[1746324470580,8.5724,1844.9,1844.8,2.74106]
[1746324472280,5.3646,1844.9,1844.8,2.74106]
[1746324472475,8.5724,1844.9,1844.8,1.08396]
[1746324473183,9.6563,1844.9,1844.8,1.08396]
[1746324474883,8.5724,1844.9,1844.7,4.316]
[1746324475075,9.65633,1844.9,1844.8,1.08396]
[1746324475271,9.65633,1844.9,1844.8,2.65696]
[1746324475784,8.5724,1844.9,1844.7,4.316]
[1746324476082,1.08413,1844.6,1844.5,1.08414]
[1746324476383,3.2078,1844.6,1844.4,2.03765]
[1746324476583,4.2919,1844.6,1844.5,1.08414]
[1746324476783,1.08414,1844.5,1844.4,2.03766]
[1746324477084,3.688,1844.5,1844.4,2.03766]
[1746324477278,2.7105,1844.4,1843.7,14.3765367]
[1746324477481,3.8474,1844.4,1843.9,1.6563]
[1746324477680,4.29223,1844.0,1843.9,1.6563]
[1746324478179,7.98023,1844.0,1843.9,1.6563]
[1746324478885,6.8958,1844.0,1843.7,2.0945]
[1746324479089,5.98299,1843.9,1843.8,1.6563]
[1746324479377,5.98302,1843.9,1843.7,1.08461]
[1746324479684,5.98302,1843.9,1843.8,1.6563]
[1746324479883,1.08459,1843.8,1843.6,11.85934635]
[1746324480191,6.41419,1843.8,1843.7,1.5799]
[1746324480482,9.62199,1843.8,1843.7,1.5799]
[1746324480676,9.622,1843.8,1843.6,11.85934635]
[1746324480878,6.8958,1843.8,1843.7,1.08461]
[1746324481182,6.8958,1843.8,1843.7,2.66451]
[1746324481882,3.688,1843.8,1843.7,2.66451]
[1746324483382,3.688,1843.8,1843.7,11.80051]
[1746324484680,3.688,1843.8,1843.7,6.80051]
[1746324484886,3.688,1843.8,1843.7,15.00831]
[1746324485082,3.61200195,1844.0,1843.9,1.08449]
[1746324485275,3.2078,1844.2,1843.8,1.0527]
[1746324485586,3.2078,1844.3,1843.9,1.6289]
[1746324485885,3.61200195,1844.4,1844.2,1.08431]
[1746324486185,3.2078,1844.3,1844.2,1.08431]
[1746324487183,6.8958,1844.3,1844.2,1.08431]
[1746324491490,1.08437,1844.1,1844.0,1.0]
[1746324491791,1.08444,1844.0,1843.8,1.0527]
[1746324491979,3.2078,1844.1,1843.8,2.13721]
[1746324491980,3.2078,1843.9,1843.8,2.13721]
[1746324492188,6.8958,1843.9,1843.8,2.13721]
[1746324493079,3.688,1843.9,1843.8,2.13721]
[1746324493280,2.3868,1843.9,1843.8,7.13721]
[1746324493487,2.3868,1843.9,1843.8,2.13721]
[1746324493989,2.3868,1843.9,1843.7,6.36007]
[1746324494181,2.3868,1843.9,1843.6,3.2078]
[1746324494182,1.08455,1843.8,1843.6,3.2078]
[1746324494388,5.98315,1843.8,1843.6,1.08466]
[1746324494692,5.98315,1843.8,1843.5,29.37069]
[1746324494987,1.08467,1843.6,1843.5,27.233]
[1746324495191,7.98047,1843.6,1843.5,27.233]
[1746324495592,12.98047,1843.6,1843.5,27.233]
[1746324497989,6.8958,1843.6,1843.5,27.233]
[1746324498793,7.98047,1843.6,1843.5,27.233]
[1746324498995,6.8958,1843.6,1843.5,28.31773]
[1746324499196,6.8958,1843.6,1843.5,27.233]
[1746324499590,7.98047,1843.6,1843.5,27.233]
[1746324499890,9.61557,1843.6,1843.5,27.233]
[1746324502597,9.61557,1843.6,1843.5,2.101]
[1746324503284,6.8958,1843.6,1843.5,3.18573]
[1746324503993,3.688,1843.6,1843.5,3.18573]
[1746324504187,3.688,1843.6,1843.5,8.18573]
[1746324504896,3.688,1843.6,1843.5,13.04853]
[1746324505397,3.61200195,1843.8,1843.7,1.08461]
[1746324505598,3.61200195,1843.8,1843.7,5.16861]
[1746324505895,3.61200195,1843.8,1843.7,10.16861]
[1746324506089,7.30000195,1843.8,1843.7,10.16861]
[1746324506490,7.30000195,1843.8,1843.7,5.16861]
[1746324507198,3.688,1843.8,1843.7,5.16861]
[1746324509587,3.688,1843.8,1843.7,8.37641]
[1746324509794,3.688,1843.8,1843.7,13.37641]
[1746324509994,3.2078,1844.2,1844.1,1.08437]
[1746324510197,3.2078,1844.2,1844.0,1.08441]
[1746324510699,1.6901,1844.1,1844.0,1.08441]
[1746324511297,5.3781,1844.1,1844.0,1.08441]
[1746324513601,3.688,1844.1,1844.0,1.08441]
[1746324514300,3.688,1844.1,1844.0,2.70691]
[1746324516408,3.688,1844.1,1844.0,1.6225]
[1746324516701,3.688,1844.1,1844.0,2.70693]
[1746324517404,3.688,1844.1,1844.0,1.6225]
[1746324517803,6.37517,1844.1,1844.0,1.6225]
[1746324518107,1.08467,1843.6,1843.5,145.331]
[1746324518298,1.08467,1843.6,1843.5,146.41573]
[1746324518699,1.6028,1843.6,1843.5,148.14993]
[1746324519000,2.68747,1843.6,1843.5,147.0652]
[1746324519193,6.37547,1843.6,1843.5,145.331]
[1746324519497,7.84117,1843.6,1843.5,145.331]